Cogmind - Beta 13 X1 @@@ ROGUE MODE // 2023.11.29 @ 21:59:35 Player: AlmondRoll Result: Destroyed by FB-2HK(R) with Subdweller Machine Gun Performance ------------- Evolutions (0) 0 Regions Visited (2) 400 Robots Destroyed (28) 140 Value Destroyed (480) 480 Prototype IDs (0) 0 Alien Tech Used (0) 0 Bonus (0) 0 TOTAL SCORE: 1020 Bonus ------- None Cogmind --------- Core Integrity 0/250 Matter 292/300 Energy 123/125 System Corruption 0% Temperature Cool (0) Movement Rolling (100) Location -10/Subcaves Parts ------- > --- POWER (1) -------- Light Ion Engine > --- PROPULSION (2) --- Compact Wheel Compact Wheel > --- UTILITY (2) ------ Scrap Shield > --- WEAPON (2) ------- Subdweller Machine Gun Subdweller Machine Gun > --- INVENTORY (5) ---- Light Ion Engine Wheel Subdweller Laser Light Assault Rifle Battle Rifle Peak State ------------ > --- POWER ------------ Light Ion Engine > --- PROPULSION ------- Compact Wheel Compact Wheel > --- UTILITY ---------- Scrap Shield > --- WEAPON ----------- Subdweller Machine Gun Subdweller Machine Gun > --- INVENTORY -------- Light Ion Engine Wheel Medium Laser Light Assault Rifle Battle Rifle [Rating: 11] Favorites ----------- Power Light Ion Engine Engine Light Ion Engine Propulsion Light Treads Treads Light Treads Leg Aluminum Leg Wheel Compact Wheel Utility Structural Scanner Device Structural Scanner Storage Small Storage Unit Protection Scrap Shield Weapon Medium Laser Energy Gun Medium Laser Ballistic Gun Assault Rifle Special Weapon Mining Laser Build | -11 -10 -10 ------- Run | Jun Mat Sub Slots Evolved . | . . . Power . | . . . Propulsion . | . . . Utility . | . . . Weapon . | . . . Parts Attached 21 | 2 7 12 Power . | . . . Engine . | . . . Core . | . . . Reactor . | . . . Propulsion 5 | 2 1 2 Treads 3 | 2 1 . Leg . | . . . Wheel 2 | . . 2 Hover . | . . . Flight . | . . . Utility 4 | . 3 1 Device 1 | . 1 . Storage 2 | . 2 . Processor . | . . . Hackware . | . . . Protection 1 | . . 1 Artifact . | . . . Weapon 12 | . 3 9 Energy Gun 4 | . 1 3 Energy Cannon . | . . . Ballistic Gun 5 | . 1 4 Ballistic Cannon . | . . . Launcher . | . . . Special Weapon 3 | . 1 2 Impact Weapon . | . . . Slashing Weapon . | . . . Piercing Weapon . | . . . Special Melee Weapon . | . . . Unidentified Prototypes . | . . . Parts Lost 4 | . . 4 Power . | . . . Propulsion 2 | . . 2 Utility . | . . . Weapon 2 | . . 2 Highest Loss Streak 2 | . . 2 To Critical Strikes 1 | . . 1 Average Slot Usage (%) 97 | . 98 94 Engine 14 | . 14 14 Treads 25 | . 28 15 Wheel 2 | . . 12 Device 12 | . 12 10 Storage 13 | . 14 10 Energy Gun 12 | . 13 7 Ballistic Gun 14 | . 13 17 Naked Turns . | . . . Heaviest Build 50 | 12 48 50 Greatest Support 40 | 40 40 40 Greatest Overweight (x) 1 | . 1 1 Average Overweight (x) . | . . . Largest Inventory Capacity 20 | 8 20 20 Average Capacity 12 | 8 11 16 Most Carried 13 | 7 12 13 Average Carried 8 | 6 8 10 Final Capacity 20 | 8 20 5 Final Carried 12 | 7 12 5 Class Distribution -------------------- 96% | Mutant 3% | Subdweller-Mutant Dominant Class ---------------- Mutant | -10/Materials Mutant | -10/Subcaves Resources | -11 -10 -10 ----------- Run | Jun Mat Sub Matter Collected 1032 | 229 660 143 Remotely . | . . . Salvage Created 987 | 29 783 175 Parts 77 | 2 63 12 Haulers Intercepted 1 | . 1 . Recyclers Shooed 1 | . 1 . Parts Field Recycled . | . . . Retrieved Matter . | . . . Parts Self-Destructed . | . . . Prevented . | . . . Kills | -11 -10 -10 ------- Run | Jun Mat Sub Combat Hostiles Destroyed 12 | . 8 4 Guns 11 | . 7 4 Classes Destroyed 11 | 1 8 2 Worker 4 | . 4 . Builder 2 | . 2 . Tunneler 4 | 1 3 . Hauler 1 | . 1 . Recycler 3 | . 3 . Operator 1 | . 1 . Watcher 1 | . 1 . Swarmer 3 | . 3 . Grunt 5 | . 5 . Artisan 1 | . . 1 Subdweller 4 | . . 4 Best Kill Streak 6 | 1 6 2 Combat Bots Only 3 | . 3 2 Max Kills in Single Turn 2 | 1 2 1 Gunslinging . | . . . Exploded . | . . . Melee . | . . . Uniques/NPCs Destroyed . | . . . Combat | -11 -10 -10 -------- Run | Jun Mat Sub Damage Taken 883 | . 253 630 Core 254 | . 40 214 Absorbed by Shields . | . . . Core Remaining (%) 100 | 100 . . Volleys Fired 92 | 3 53 36 Largest 2 | 2 2 2 Hottest 100 | 70 100 100 Shots Fired 172 | 6 104 62 Gun 162 | 6 103 53 Cannon . | . . . Launcher . | . . . Special 10 | . 1 9 Kinetic 83 | 3 52 28 Thermal 89 | 3 52 34 Explosive . | . . . Electromagnetic . | . . . Robot Hit Streak 20 | 1 14 20 Robot Miss Streak 4 | 2 4 3 Penetration Max . | . . . Secondary Targets 1 | . 1 . Max Gunslinging Chain 1 | . 1 . Shots Hit Robots 113 | 2 67 44 Core Hits 45 | 1 32 12 Critical Kills . | . . . Critical Parts Destroyed . | . . . Critical Strikes 6 | . 5 1 Burn 6 | . 5 1 Melee Attacks . | . . . Impact . | . . . Slashing . | . . . Piercing . | . . . Sneak Attacks . | . . . Combat Hostiles . | . . . Follow-up Attacks . | . . . Damage Inflicted 1336 | 38 880 418 Guns 1336 | 38 880 418 Cannons . | . . . Explosions . | . . . Melee . | . . . Ramming . | . . . Kinetic 695 | 25 451 219 Thermal 641 | 13 429 199 Explosive . | . . . Electromagnetic . | . . . Impact . | . . . Slashing . | . . . Piercing . | . . . Highest Corruption . | . . . Average Corruption . | . . . Corruption Purged . | . . . Corruption Blocked . | . . . Overload Shots . | . . . Overflow Damage . | . . . Projectiles . | . . . Explosions . | . . . Melee . | . . . Knockbacks . | . . . Impact . | . . . Kinetic . | . . . Secondary . | . . . Self-Inflicted Damage . | . . . Shots . | . . . Rammed . | . . . Targets Rammed . | . . . Kicked . | . . . Crushed . | . . . Highest Temperature 269 | 27 222 269 Average Temperature 56 | 14 49 129 Received Heat Transfer 516 | . 162 354 Effects 2 | . 1 1 Energy Bleed 2 | . 1 1 Siege Activations . | . . . Robots Corrupted . | . . . Combat Hostiles . | . . . Parts Fried . | . . . Impact Corruptions . | . . . Robots Melted 1 | . 1 . Combat Hostiles 1 | . 1 . Parts Melted 4 | . 4 . Heat Transferred 2331 | 37 1628 666 Parts Sabotaged . | . . . Parts Stolen . | . . . Parts Stripped . | . . . Power Chain Reactions . | . . . Missiles Intercepted . | . . . Alert | -11 -10 -10 ------- Run | Jun Mat Sub Peak Influence 242 | 5 242 . Initial 3 | . 3 . Average 45 | 2 45 . Maximum Alert Level 1 | . 1 . Low Security (%) 91 | 100 91 . Level 1 8 | . 8 . Level 2 . | . . . Level 3 . | . . . Level 4 . | . . . Level 5 . | . . . High Security . | . . . Max Security . | . . . Squads Dispatched . | . . . Investigation . | . . . Extermination . | . . . Reinforcement . | . . . Assault . | . . . Garrison . | . . . Intercept . | . . . Searches Triggered . | . . . Construction Impeded . | . . . Haulers Reinforced . | . . . Active Scanning Responses . | . . . Cargo Convoy Interrupts . | . . . Stealth | -11 -10 -10 --------- Run | Jun Mat Sub Distress Signals . | . . . Communications Jammed . | . . . Distress Signals . | . . . Times Spotted 17 | . 12 5 Peak Tracking Total 3 | . 3 2 Tactical Retreats 1 | . 1 . Traps | -11 -10 -10 ------- Run | Jun Mat Sub Traps Triggered 1 | . 1 . Indirectly . | . . . Trap Hack Attempts . | . . . Triggered . | . . . Disarmed . | . . . Reprogrammed . | . . . Reused . | . . . Traps Extracted . | . . . Installed . | . . . Triggered . | . . . Machines | -11 -10 -10 ---------- Run | Jun Mat Sub Machines Disabled . | . . . Max in Single Turn . | . . . Machines Repaired . | . . . Machines Sabotaged . | . . . Overloaded Fab Kills . | . . . Hacking | -11 -10 -10 --------- Run | Jun Mat Sub Machines Accessed 2 | . 2 . Terminals 2 | . 2 . Fabricators . | . . . Repair Stations . | . . . Recycling Units . | . . . Scanalyzers . | . . . Garrison Access . | . . . Total Hacks 7 | . 7 . Successful 1 | . 1 . Failed 5 | . 5 . Catastrophic . | . . . Database Lockouts 1 | . 1 . Manual 7 | . 7 . Terminals 7 | . 7 . Fabricators . | . . . Repair Stations . | . . . Recycling Units . | . . . Scanalyzers . | . . . Garrison Access . | . . . Terminal Hacks 1 | . 1 . Robot Analysis 1 | . 1 . Fabricator Hacks . | . . . Repair Station Hacks . | . . . Recycling Unit Hacks . | . . . Scanalyzer . | . . . Garrison Access Hacks . | . . . Unauthorized Hacks . | . . . Terminals . | . . . Fabricators . | . . . Repair Stations . | . . . Recycling Units . | . . . Scanalyzers . | . . . Garrison Access . | . . . Data Cores Recovered 1 | . 1 . Used . | . . . Hacking Detections 2 | . 2 . Full Trace Events 2 | . 2 . Feedback Events . | . . . Feedback Blocked . | . . . Robot Schematics Acquired . | . . . Robots Built . | . . . Authchips . | . . . Time . | . . . Total Robot Build Rating . | . . . Part Schematics Acquired . | . . . Parts Built . | . . . Authchips . | . . . Time . | . . . Total Part Build Rating . | . . . Parts Repaired . | . . . Time . | . . . Parts Recycled . | . . . Recycled Matter . | . . . Retrieved Matter . | . . . Retrieved Components . | . . . Parts Scanalyzed . | . . . Part Schematics Acquired . | . . . Parts Damaged . | . . . Bothacking | -11 -10 -10 ------------ Run | Jun Mat Sub Used RIF Installer . | . . . Robots Hacked . | . . . Non-combat . | . . . Combat . | . . . Robot Hacks Applied . | . . . Relay Couplers Released . | . . . Fabnet Peak Effective % . | . . . Robots Rewired . | . . . Allies Hacked . | . . . Hacks Repelled . | . . . Allies | -11 -10 -10 -------- Run | Jun Mat Sub Total Allies . | . . . Largest Group . | . . . Highest-Rated Group . | . . . Highest-Rated Ally . | . . . Total Orders . | . . . Ally Attacks . | . . . Total Damage . | . . . Kills . | . . . Allies Corrupted . | . . . Allies Melted . | . . . Intel | -11 -10 -10 ------- Run | Jun Mat Sub Robot Analysis Total 1 | . 1 . Derelict Logs Recovered . | . . . Drone Launches . | . . . Drone Recoveries . | . . . Exploration | -11 -10 -10 ------------- Run | Jun Mat Sub Turns Passed 2335 | 25 1806 504 Spaces Moved 906 | 8 712 186 Core . | . . . Treads 804 | 8 712 84 Legs . | . . . Wheels 102 | . . 102 Hover . | . . . Flight . | . . . Fastest Speed 100 | 160 160 100 Average Speed 180 | 160 184 165 Slowest Speed 240 | 160 240 240 Overloaded Moves . | . . . Propulsion Burnouts . | . . . Robots Hopped . | . . . Cave-ins Triggered . | . . . Exploration Rate (%) 23 | 2 60 8 Regions Visited 2 Branch Regions 1 Pre-discovered Areas . | . . . Known Exits Taken . | . . . Unknown Exits Taken 2 | 1 1 . Scrap Searched 2 | . . 2 Spaces Dug . | . . . Terrain Destroyed . | . . . Melee . | . . . Projectile . | . . . AOE . | . . . Terrain Rammed . | . . . Walls Destroyed . | . . . Machines Disabled . | . . . Actions | -11 -10 -10 --------- Run | Jun Mat Sub Total 1423 | 13 1102 308 Wait 374 | . 316 58 Move 904 | 7 711 186 Hop . | . . . Pick Up 16 | 1 9 6 Fast Attach 7 | . 5 2 Attach 6 | . . 6 Detach 2 | . . 2 Swap 8 | 2 2 4 Drop 12 | . 6 6 Fire 92 | 3 53 36 Melee . | . . . Ram . | . . . Kick . | . . . Crush . | . . . Escape Stasis . | . . . Rewire . | . . . Trap . | . . . Miscellaneous 2 | . . 2 Route ------- -11/Junkyard -10/Materials (discovered 3 exits: [*Mat x2] / [*Sub]) -10/Subcaves History --------- Turn | Location | Event 4 | -11/Junkyard | Discovered new exit (range 3) 26 | -11/Junkyard | Entered Materials 82 | -10/Materials | Central database locked down 305 | -10/Materials | Build established: Mutant 398 | -10/Materials | Discovered new exit (range 15) 621 | -10/Materials | Discovered new exit (range 7) 864 | -10/Materials | Discovered new exit (range 15) 1832 | -10/Materials | Entered Subcaves 2096 | -10/Subcaves | Disturbed a concealed Subdweller 2113 | -10/Subcaves | Core integrity fell below 50% 2121 | -10/Subcaves | Core integrity fell below 20% 2292 | -10/Subcaves | A swath of the cavern ceiling suddenly collapsed 2336 | -10/Subcaves | Destroyed by FB-2HK(R) with Subdweller Machine Gun Last Messages --------------- 02208_ Dropped Structural Scanner. 02208_ Dropped Hcp. Storage Unit. 02209_ Acquired Scrap Shield. 02210_ Acquired 10 matter. 02219_ Scrap Shield Fragment affixed to Scrap Shield (+46). 02220_ Dropped Multitool. 02221_ Dropped Lrg. Matter Pod. 02230_ Acquired Battle Rifle. 02235_ Acquired Lgt. Assault Rifle. 02258_ 4V-CWR(R) destroyed. 02264_ W1-QCG(R) destroyed. 02267_ Acquired 15 matter. 02269_ Scrap Shield Fragment affixed to Scrap Shield (+45). 02273_ Dropped Assault Rifle. 02274_ Acquired Sub. Machine Gun. 02276_ Dropped Med. Laser. 02277_ Acquired Sub. Laser. 02278_ Acquired 10 matter. A swath of the cavern ceiling suddenly collapses. Map ----- +----------------------------------------------------+ | ?????????????????????????????????????????????????? | | ?????????????????????????????????????????????????? | | ????????????????? ??????????? ?????????????????? | | ???????????????? ????##??? ?????#???????????? | | ???????????????? ???# #?# ????? #???????????? | | ????????????????? ### ## ???? #???????????? | | ?????????????????? # ??? ##???????????? | | ???????????????????? # #?## #???????????? | | ????????????????????? # ## #????????????? | | ??????????????????????? ### "# #????????????? | | ????????????????????????#""##"# #????????????? | | ????????????????????????#""""## #????????????? | | ????????????????????????#### "# # #?????????????? | | ?????????????????????????###""#"# ##?????????????? | | ????????????????????????## #"# ###????????????? | | ????????????????????????# " # ####???????????? | | ????????????????????????## " " ###???????????? | | ?????????????????????????# " ##???????????? | | ????????????????????????## ##???????????? | | ?????????????????????#### ##???????????? | | ?????????????????????### ##???????????? | | ?????????????????????## [ ### ##???????????? | | ?????????????????????## [ #?# ###???????????? | | ?????????????????????##= ##?# ###???????????? | | ?????????????????????## R#### ###???????????? | | ???????##########????##!!@### ##???????????? | | ####################?## *=| ##???????????? | | #########" ## ######## !! ####???????????? | | ### " *" " ##### ! !### ###????????????? | | ## " = # " ########=%#### ####???????????? | | " "### ###""######### ! # ####??????????? | | " "####" #####" ##???### ##??????????? | | """"##########"" ##???## #### ##??????????? | | ## ############"" ##???##### #""## ##??????????? | | # ### ??#######" ########## < |"# ????????????? | | ## ##????######" ########### # "# ##??????????? | | ## ??? ## "" ##""## # # ##<"## ##??????????? | | ??"# """"" "" ! |!#### ##??????????? | | ##### "" ##### # ## ## ###??????????? | | ########" ########################???????????? | | ###??## ###"####??####################???????????? | | ???????########??????????????????????????????????? | | ?????????###?????????????????????????????????????? | | ?????????????????????????????????????????????????? | | ?????????????????????????????????????????????????? | | ?????????????????????????????????????????????????? | | ?????????????????????????????????????????????????? | | ?????????????????????????????????????????????????? | | ?????????????????????????????????????????????????? | | ?????????????????????????????????????????????????? | +----------------------------------------------------+ Best States ------------- Heat Dissipation 25 Energy Generation 10 Energy Capacity 125 Matter Stores 444 Matter Capacity 450 Sight Range 16 Terrain Scan Density 10 Armor Coverage 800 Evasion (%) 40 Recoil Reduction 2 Item Schematics ----------------- None Robot Schematics ------------------ None Fabricated ------------ Nothing Alien Tech Used ----------------- None Achievements -------------- None Challenges ------------ None Game ------ Seed NuclearDeepPlatform Manual? 0 Play Time 00:14:13 Cumulative 388.1 hours Start 2023.11.29 @ 21:46:00 End 2023.11.29 @ 21:59:35 Sessions 1 Manual Loads 0 Difficulty Rogue Special Mode None Game No. 197 Rogue 197 Adventurer 0 Explorer 0 Win Type - Total 14 Types 8/0/4/2/0/0/0/0/0 Lore% 80 Gallery% 83 Achievement% 70 Wizard Run 0 Options --------- ASCII 0 Keyboard 0 Movement Mouse Keybinds 0 Fullscreen 1 Font 12/Smallcaps Map View 76x56 Tactical HUD 1 Map Filters NONE Filters NONE Steam 1 RUN: fceac82d-156a-4566-a38c-e0effe69fd68